bitfinex-derivatives/quotes_SOLF0:USTF0_20250409
["timestamp","ask_amount","ask_price","bid_price","bid_amount"]
[1744195222497,26.12699234,106.53,106.48,0.0678729]
[1744195222793,1.69701807,106.52,106.48,0.0678729]
[1744195223395,26.12699234,106.53,106.48,0.0678729]
[1744195223596,2.2817,106.53,106.48,0.0678729]
[1744195223989,9.3933,106.51,106.48,9.4632729]
[1744195224187,2.2817,106.53,106.48,0.0678729]
[1744195224396,36.94,106.51,106.48,0.0678729]
[1744195224592,9.3947,106.5,106.48,0.0678729]
[1744195225195,36.94,106.51,106.48,0.0678729]
[1744195225398,25.54159739,106.5,106.42,2.2947]
[1744195225590,23.84529234,106.48,106.42,2.2947]
[1744195225790,36.94,106.47,106.42,26.13999234]
[1744195225987,9.3989,106.45,106.42,11.6959]
[1744195226193,9.3989,106.45,106.42,2.2947]
[1744195226499,9.46104473,106.45,106.42,2.36109555]
[1744195226801,0.06214473,106.45,106.42,2.36109555]
[1744195227002,0.06214473,106.45,106.44,9.3994]
[1744195227193,0.06214473,106.45,106.42,26.20638789]
[1744195227396,0.06214473,106.45,106.42,2.36109555]
[1744195227595,0.06214473,106.45,106.42,11.76159555]
[1744195227809,0.06214473,106.45,106.42,0.06639555]
[1744195228302,9.3998,106.44,106.42,0.06639555]
[1744195228812,9.46124473,106.45,106.42,0.06639555]
[1744195229110,9.46124473,106.45,106.42,9.46749555]
[1744195230510,9.46124473,106.45,106.42,0.06639555]
[1744195231411,9.4002,106.44,106.42,0.06639555]
[1744195231605,0.06214473,106.45,106.42,0.06639555]
[1744195232008,9.46104473,106.45,106.42,0.06639555]
[1744195233009,9.46104473,106.45,106.42,9.46719555]
[1744195233214,9.46104473,106.45,106.42,0.06639555]
[1744195234117,0.06214473,106.45,106.42,0.06639555]
[1744195234313,0.06214473,106.45,106.42,9.46729555]
[1744195234515,9.46104473,106.45,106.42,9.46729555]
[1744195236416,9.3995,106.44,106.42,0.06639555]
[1744195238318,9.3995,106.44,106.42,9.46749555]
[1744195238514,533.28,106.44,106.34,1.63545363]
[1744195238706,533.28,106.44,106.33,4.6738]
[1744195238707,23.84529234,106.4,106.33,4.6738]
[1744195238910,36.94,106.39,106.32,23.84529234]
[1744195239114,60.78529234,106.39,106.31,26.18159234]
[1744195239321,23.84529234,106.37,106.31,2.3363]
[1744195239618,9.4096,106.33,106.31,2.3363]
[1744195240011,9.4086,106.34,106.31,2.40391781]
[1744195240217,0.069535,106.35,106.31,2.40391781]
[1744195240606,9.4084,106.34,106.31,2.40391781]
[1744195241117,9.477335,106.35,106.31,2.40391781]
[1744195241920,0.069535,106.35,106.31,2.40391781]
[1744195242306,9.41,106.32,106.31,0.06761781]
[1744195244823,36.99995785,106.33,106.31,0.06761781]
[1744195245120,0.05995785,106.33,106.31,23.91291015]
[1744195246319,0.05995785,106.33,106.32,9.41]
[1744195246713,0.05995785,106.33,106.31,23.91291015]
[1744195247222,0.05995785,106.33,106.32,9.41]
[1744195247421,0.05995785,106.33,106.31,23.91291015]
[1744195247715,0.05995785,106.33,106.31,9.47821781]
[1744195250326,0.05995785,106.33,106.31,0.06761781]
[1744195250624,0.05995785,106.33,106.31,9.47781781]
[1744195251224,9.46935785,106.33,106.31,0.06761781]
[1744195251424,0.05995785,106.33,106.31,0.06761781]
[1744195251829,9.41,106.32,106.31,0.06761781]
[1744195252127,0.05995785,106.33,106.31,0.06761781]
[1744195252826,9.41,106.32,106.31,0.06761781]
[1744195255324,9.46915785,106.33,106.31,0.06761781]
[1744195255829,0.05995785,106.33,106.31,0.06761781]
[1744195257131,0.05995785,106.33,106.32,9.41]
[1744195257424,0.05995785,106.33,106.31,0.06761781]
[1744195257630,9.46945785,106.33,106.31,0.06761781]
[1744195257827,0.05995785,106.33,106.31,0.06761781]
[1744195258236,9.41,106.32,106.31,0.06761781]
[1744195263337,9.41,106.32,106.31,1.781e-05]
[1744195270442,0.05995785,106.33,106.31,1.781e-05]
[1744195270842,9.41,106.32,106.31,1.781e-05]
[1744195272641,0.05995785,106.33,106.31,1.781e-05]
[1744195273037,0.05995785,106.33,106.32,9.41]
[1744195273241,37.12,106.37,106.31,4.63061781]
[1744195273442,9.4078,106.35,106.32,9.4096]
[1744195273649,37.12,106.39,106.32,23.84529234]
[1744195274235,37.12,106.39,106.34,23.84529234]
[1744195274440,0.06163455,106.37,106.34,23.90821495]
[1744195274737,0.06163455,106.37,106.35,9.4069]
[1744195274937,0.06163455,106.37,106.34,23.90821495]
[1744195275140,9.46743455,106.37,106.34,33.31591495]
[1744195275446,0.06163455,106.37,106.34,23.90821495]
[1744195276346,0.06163455,106.37,106.34,0.06292261]
[1744195276546,37.18163455,106.37,106.34,0.06292261]
[1744195279242,9.4074,106.36,106.34,0.06292261]
[1744195279549,0.06163455,106.37,106.34,0.06292261]
[1744195279845,9.4074,106.35,106.34,0.06292261]
[1744195280349,0.06163455,106.37,106.34,0.06292261]
[1744195280946,9.407,106.36,106.34,0.06292261]
[1744195281144,0.06163455,106.37,106.34,0.06292261]
[1744195281548,9.4074,106.35,106.34,0.06292261]
[1744195284051,9.4068,106.36,106.34,0.06292261]
[1744195284251,37.50163455,106.37,106.34,0.06292261]
[1744195287153,46.90773455,106.37,106.34,0.06292261]
[1744195287353,37.50163455,106.37,106.34,0.06292261]
[1744195287552,37.50163455,106.37,106.34,9.47102261]
[1744195288149,0.06163455,106.37,106.34,9.47112261]
[1744195288351,9.46783455,106.37,106.34,9.47112261]
[1744195289455,0.06163455,106.37,106.36,9.4065]
[1744195289650,0.06163455,106.37,106.36,11.611]
[1744195290246,37.44,106.42,106.37,9.4055]
[1744195290448,37.44,106.42,106.36,4.5266]
[1744195291247,9.4045,106.39,106.36,4.5266]
[1744195291462,9.4045,106.39,106.38,0.06904581]
[1744195293648,46.8445,106.39,106.38,0.06904581]
[1744195294455,9.4045,106.39,106.38,0.06904581]
[1744195296544,9.4045,106.39,106.38,4.581e-05]
[1744195297457,33.24979234,106.39,106.38,4.581e-05]
[1744195305761,33.24979234,106.39,106.31,2.229]
[1744195305762,9.4086,106.34,106.31,2.229]
[1744195306260,37.44,106.35,106.31,2.229]
[1744195306559,37.44,106.35,106.3,9.4114]
[1744195306762,61.28529234,106.35,106.27,9.4141]
[1744195306966,23.84529234,106.33,106.31,0.07217779]
[1744195307148,9.4122,106.3,106.26,6.8169]
[1744195307453,9.4122,106.3,106.27,9.4141]
[1744195308159,9.4122,106.3,106.27,9.4768823]
[1744195308460,9.47668331,106.3,106.27,9.4768823]
[1744195308659,0.06448331,106.3,106.27,0.0627823]
[1744195309164,0.06448331,106.3,106.28,9.4129]
[1744195310361,0.06448331,106.3,106.29,9.4127]
[1744195315861,0.06448331,106.3,106.28,9.413]
[1744195317165,0.06448331,106.3,106.27,60.96807464]
[1744195318266,0.06448331,106.3,106.29,9.4127]
[1744195320769,2.1776,106.36,106.3,9.4115]
[1744195321164,2.1776,106.36,106.29,9.4121]
[1744195321680,2.1776,106.36,106.31,0.06498584]
[1744195321882,0.06511435,106.34,106.31,0.06498584]
[1744195322182,9.4095,106.33,106.31,0.06498584]
[1744195325286,0.06511435,106.34,106.31,0.06498584]
[1744195326081,9.4096,106.33,106.31,0.06498584]
[1744195326882,9.47411435,106.34,106.31,9.47588584]
[1744195327281,0.06511435,106.34,106.31,0.06498584]
[1744195327788,9.4092,106.33,106.31,0.06498584]
[1744195328081,0.06511435,106.34,106.31,0.06498584]
[1744195328286,24.70682035,106.32,106.31,0.06498584]
[1744195329184,9.41,106.32,106.31,0.06498584]
[1744195329385,24.70682035,106.32,106.31,0.06498584]
[1744195330689,24.70682035,106.32,106.31,8.584e-05]
[1744195334687,15.29682035,106.32,106.24,15.29682035]
[1744195334987,15.29682035,106.28,106.23,17.65302035]
[1744195335188,52.35682035,106.28,106.23,17.65302035]
[1744195335388,15.29682035,106.27,106.23,11.7739]
[1744195335587,52.35682035,106.28,106.23,2.3562]
[1744195335786,9.4166,106.25,106.23,2.3562]
[1744195335987,0.07004612,106.27,106.24,0.06033229]
[1744195336180,15.36686647,106.27,106.24,0.06033229]
[1744195336383,9.4153,106.26,106.24,0.06033229]
[1744195337190,9.4162,106.25,106.24,0.06033229]
[1744195337391,0.07004612,106.27,106.24,0.06033229]
[1744195337694,9.4162,106.25,106.24,0.06033229]
[1744195338193,60.9963211,106.25,106.19,2.3257]
[1744195338889,9.4191,106.22,106.19,11.7469]
[1744195339087,60.9963211,106.25,106.19,11.7469]
[1744195339592,0.06887256,106.22,106.19,11.81268605]
[1744195339792,0.06887256,106.22,106.2,9.4206]
[1744195340496,0.06887256,106.22,106.19,11.81248605]
[1744195340990,0.06887256,106.22,106.19,2.39148605]
[1744195341694,0.06887256,106.22,106.19,0.06578605]
[1744195341995,9.48817256,106.22,106.19,9.48728605]
[1744195342196,9.48817256,106.22,106.19,0.06578605]
[1744195342197,0.06887256,106.22,106.19,0.06578605]
[1744195343095,0.06887256,106.22,106.2,9.4203]
[1744195344600,0.06887256,106.22,106.21,9.4198]
[1744195350096,36.88,106.27,106.23,9.4174]
[1744195350293,46.2949,106.27,106.21,23.9363211]
[1744195350498,6.9365,106.3,106.24,9.4168]
[1744195350695,36.88,106.27,106.24,9.4168]
[1744195350993,9.4157,106.26,106.24,9.4168]
[1744195351194,9.4157,106.26,106.24,9.48515165]
[1744195351999,9.4162,106.25,106.24,0.06835165]
[1744195352692,0.06563085,106.27,106.24,0.06835165]
[1744195353098,0.06563085,106.27,106.24,2.36595165]
[1744195353899,0.06563085,106.27,106.25,9.4156]
[1744195354902,0.06563085,106.27,106.24,2.36595165]
[1744195356702,0.06563085,106.27,106.26,9.4153]
[1744195358807,0.06563085,106.27,106.24,0.06835165]
[1744195359197,9.48053085,106.27,106.24,9.48475165]
[1744195359398,9.48053085,106.27,106.24,24.7981312]
[1744195359607,9.48053085,106.27,106.24,15.3817312]
[1744195360603,9.4154,106.26,106.24,24.7984312]
[1744195360798,0.06563085,106.27,106.24,15.3817312]
[1744195361107,9.48043085,106.27,106.25,9.4157]
[1744195361296,0.06563085,106.27,106.25,9.4157]
[1744195361800,0.06563085,106.27,106.24,15.3817312]
[1744195362105,0.06563085,106.27,106.26,9.4153]
[1744195362604,0.06563085,106.27,106.26,24.72867955]
[1744195371314,0.06563085,106.27,106.26,9.4153]
[1744195372616,0.06563085,106.27,106.26,24.72867955]
[1744195374516,0.06563085,106.27,106.26,9.4153]
[1744195374711,0.06563085,106.27,106.26,24.72867955]
[1744195378016,0.06563085,106.27,106.26,9.4153]
[1744195380213,0.06563085,106.27,106.25,17.71247955]
[1744195380823,0.06563085,106.27,106.25,15.31337955]
[1744195381118,0.06563085,106.27,106.26,15.31337955]
[1744195381314,0.06563085,106.27,106.26,24.72867955]
[1744195385926,42.9783,106.33,106.26,19.3927613]
[1744195386112,42.9783,106.33,106.28,15.31337955]
[1744195386722,9.4106,106.32,106.29,9.412]
[1744195386925,9.48031562,106.32,106.29,0.06434025]
[1744195387126,9.48031562,106.32,106.3,9.4114]
[1744195387919,0.06971562,106.32,106.29,9.47644025]
[1744195388127,9.411,106.31,106.29,9.47644025]
[1744195388327,9.411,106.31,106.29,0.06434025]
[1744195391528,9.48031562,106.32,106.29,0.06434025]
[1744195391729,0.06971562,106.32,106.29,15.3777198]
[1744195391929,0.06971562,106.32,106.3,9.4115]
[1744195392226,0.06971562,106.32,106.29,0.06434025]
[1744195392527,9.48031562,106.32,106.29,9.47664025]
[1744195393725,9.48031562,106.32,106.3,9.4117]
[1744195393926,9.48031562,106.32,106.29,0.06434025]
[1744195394428,9.48031562,106.32,106.29,9.47634025]
[1744195394628,0.06971562,106.32,106.29,0.06434025]
[1744195395019,0.06971562,106.32,106.3,9.4115]
[1744195395324,0.06971562,106.32,106.3,15.31337955]
[1744195395827,0.06971562,106.32,106.31,9.4109]
[1744195398833,0.06971562,106.32,106.3,9.4113]
[1744195399128,0.06971562,106.32,106.29,15.3777198]
[1744195399129,9.48001562,106.32,106.29,0.06434025]
[1744195400129,9.48001562,106.32,106.3,9.4115]
[1744195400323,0.06971562,106.32,106.3,9.4115]
[1744195401328,9.47991562,106.32,106.29,0.06434025]
[1744195401531,9.47991562,106.32,106.29,9.47644025]
[1744195401930,9.47991562,106.32,106.29,0.06434025]
[1744195402228,9.47991562,106.32,106.29,15.3777198]
[1744195403237,9.411,106.31,106.29,9.47684025]
[1744195404434,9.411,106.31,106.29,0.06434025]
[1744195406135,9.411,106.31,106.29,9.47694025]
[1744195406730,9.48021562,106.32,106.3,9.4118]
[1744195407335,0.06971562,106.32,106.29,15.3777198]
[1744195407835,0.06971562,106.32,106.29,0.06434025]
[1744195408035,9.48031562,106.32,106.3,9.4115]
[1744195409037,9.4109,106.31,106.29,9.47654025]
[1744195409227,0.06971562,106.32,106.29,0.06434025]
[1744195409427,9.48001562,106.32,106.3,9.4113]
[1744195409730,0.06971562,106.32,106.29,0.06434025]
[1744195412238,9.48031562,106.32,106.3,9.4115]
[1744195413533,9.4109,106.31,106.3,9.4115]
[1744195413839,9.4109,106.31,106.29,9.47654025]
[1744195414043,9.48031562,106.32,106.29,0.06434025]
[1744195414539,0.06971562,106.32,106.3,9.4115]
[1744195414739,9.48021562,106.32,106.3,9.4115]
[1744195415244,9.4113,106.31,106.29,9.47654025]
[1744195415649,9.4113,106.31,106.29,0.06434025]
[1744195415842,9.48021562,106.32,106.3,9.4115]
[1744195416145,0.06971562,106.32,106.29,0.06434025]
[1744195416447,9.4113,106.31,106.29,9.47644025]
[1744195417247,9.48031562,106.32,106.3,9.4115]
[1744195417949,9.4109,106.31,106.3,9.4115]
[1744195418751,9.48031562,106.32,106.3,9.4115]
[1744195418948,0.06971562,106.32,106.29,0.06434025]
[1744195419346,9.47981562,106.32,106.3,9.411]
[1744195419551,9.47981562,106.32,106.29,0.06434025]
[1744195419851,0.06971562,106.32,106.29,0.06434025]
[1744195420855,9.48021562,106.32,106.3,9.4114]
[1744195421353,9.48021562,106.32,106.29,0.06434025]
[1744195421955,9.48021562,106.32,106.3,9.4113]
[1744195423054,9.48021562,106.32,106.29,0.06434025]
[1744195423252,0.06971562,106.32,106.29,0.06434025]
[1744195423555,0.06971562,106.32,106.3,15.31337955]
[1744195423743,0.06971562,106.32,106.31,9.4109]
[1744195423946,0.06971562,106.32,106.31,24.72427955]
[1744195424143,0.06971562,106.32,106.31,9.4109]
[1744195424558,0.06971562,106.32,106.3,24.72467955]
[1744195425155,9.47991562,106.32,106.3,24.72467955]
[1744195425357,9.47991562,106.32,106.3,9.4113]
[1744195425657,0.06971562,106.32,106.29,0.06434025]
[1744195425957,9.4116,106.31,106.29,0.06434025]
[1744195426152,0.06971562,106.32,106.29,0.06434025]
[1744195426451,9.4118,106.3,106.29,0.06434025]
[1744195427158,9.4115,106.31,106.29,0.06434025]
[1744195427352,0.06971562,106.32,106.29,0.06434025]
[1744195427554,15.38309517,106.32,106.29,0.06434025]
[1744195427757,9.4116,106.31,106.29,0.06434025]
[1744195428561,9.4116,106.31,106.29,9.47694025]
[1744195429153,9.4116,106.31,106.29,24.7903198]
[1744195430961,0.06971562,106.32,106.29,15.3777198]
[1744195431154,15.38309517,106.32,106.29,0.06434025]
[1744195431453,15.31337955,106.3,106.24,17.51027955]
[1744195431659,51.27337955,106.29,106.25,4.10482007]
[1744195431858,51.27337955,106.28,106.23,15.31337955]
[1744195432053,15.31337955,106.27,106.24,4.0534251]
[1744195432258,15.31337955,106.25,106.21,436.18631168]
[1744195432453,15.31337955,106.25,106.21,418.47183213]
[1744195432454,51.27337955,106.25,106.21,418.47183213]
[1744195432650,0.07108227,106.24,106.22,0.06413244]
[1744195433168,0.07108227,106.24,106.22,9.48263244]
[1744195435054,0.07108227,106.24,106.22,0.06413244]
[1744195435463,9.48818227,106.24,106.22,9.48263244]
[1744195435958,15.31337955,106.23,106.16,35.4]
[1744195436161,9.4212,106.2,106.16,15.31337955]
[1744195436759,9.4212,106.2,106.17,9.4228]
[1744195436959,9.422,106.19,106.17,9.4228]
[1744195437161,9.422,106.19,106.17,9.49442259]
[1744195437361,0.06191451,106.2,106.17,9.49442259]
[1744195437663,9.48311451,106.2,106.17,9.49442259]
[1744195437864,9.48311451,106.2,106.18,9.4223]
[1744195438064,0.06191451,106.2,106.18,9.4223]
[1744195438253,9.48271451,106.2,106.18,9.4223]
[1744195438655,0.06191451,106.2,106.19,9.4216]
[1744195439361,0.06191451,106.2,106.19,24.73497955]
[1744195440165,1.451e-05,106.2,106.19,24.73497955]
[1744195442367,1.451e-05,106.2,106.19,9.4216]
[1744195442558,1.451e-05,106.2,106.18,9.4219]
[1744195442969,50.71339406,106.2,106.17,0.07162259]
[1744195443165,15.31337955,106.19,106.17,0.07162259]
[1744195443370,35.40001451,106.2,106.17,0.07162259]
[1744195443560,50.71339406,106.2,106.17,0.07162259]
[1744195444263,9.4219,106.19,106.17,9.49452259]
[1744195446468,15.31339406,106.2,106.18,9.4218]
[1744195446672,1.451e-05,106.2,106.17,0.07162259]
[1744195446970,1.451e-05,106.2,106.17,15.38500214]
[1744195447569,1.451e-05,106.2,106.18,9.4224]
[1744195447875,1.451e-05,106.2,106.17,15.38500214]
[1744195448667,1.451e-05,106.2,106.19,9.4216]
[1744195449473,1.451e-05,106.2,106.18,9.4219]
[1744195449973,9.42091451,106.2,106.18,9.4219]
[1744195451469,1.451e-05,106.2,106.19,9.4216]
[1744195451678,1.451e-05,106.2,106.19,24.73497955]
[1744195452870,1.451e-05,106.2,106.19,9.4216]
[1744195453076,1.451e-05,106.2,106.18,9.4221]
[1744195453374,9.422,106.19,106.17,0.07162259]
[1744195453567,9.422,106.19,106.17,9.49462259]
[1744195453763,44.84111451,106.2,106.17,15.38500214]
[1744195454070,44.84111451,106.2,106.18,9.422]
[1744195455280,20.46450386,106.29,106.19,15.31337955]
[1744195455475,15.31337955,106.26,106.21,15.31337955]
[1744195455778,15.31337955,106.26,106.23,9.4176]
[1744195455779,9.4166,106.25,106.23,9.4176]
[1744195456484,9.47856901,106.25,106.23,9.48064659]
[1744195459277,9.47856901,106.25,106.23,0.06304659]
[1744195459477,0.06196901,106.25,106.23,15.37642614]
[1744195460180,0.06196901,106.25,106.24,9.4171]
[1744195460679,0.06196901,106.25,106.24,24.73047955]
[1744195460870,15.31337955,106.3,106.24,15.31337955]
[1744195461073,37.714,106.31,106.27,15.31337955]
[1744195461273,47.1255,106.31,106.27,15.31337955]
[1744195461683,47.1255,106.31,106.28,9.4129]
[1744195461878,9.4119,106.3,106.28,9.4129]
[1744195462078,35.47138983,106.31,106.28,0.0618628]
[1744195462285,35.47138983,106.31,106.29,9.4125]
[1744195462780,44.88268983,106.31,106.29,9.4125]
[1744195463180,9.4125,106.3,106.28,0.0618628]
[1744195463387,35.47138983,106.31,106.28,0.0618628]
[1744195463785,9.4127,106.29,106.28,0.0618628]
[1744195465788,9.48288983,106.31,106.28,0.0618628]
[1744195465978,9.48288983,106.31,106.29,9.4123]
[1744195470087,0.07138983,106.31,106.3,9.4118]
[1744195475387,2.3245,106.38,106.3,35.66]
[1744195475593,9.4061,106.37,106.32,23.91499156]
[1744195475789,35.66,106.39,106.34,9.4076]
[1744195476189,35.66,106.39,106.32,23.91499156]
[1744195476495,35.66,106.39,106.34,0.06057284]
[1744195476496,0.07223449,106.37,106.34,0.06057284]
[1744195476786,9.4074,106.35,106.34,0.06057284]
[1744195478698,9.4074,106.35,106.34,7.284e-05]
[1744195479197,9.407,106.36,106.34,7.284e-05]
[1744195479498,0.07223449,106.37,106.34,7.284e-05]
[1744195479799,9.4074,106.35,106.34,7.284e-05]
[1744195484198,9.4074,106.35,106.34,0.32467105]
[1744195504921,0.07223449,106.37,106.34,0.32467105]
[1744195505418,0.07223449,106.37,106.35,9.407]
[1744195507215,9.47813449,106.37,106.34,9.73247105]
[1744195508221,9.47813449,106.37,106.35,9.4073]
[1744195509419,9.47813449,106.37,106.34,9.73247105]
[1744195509918,9.47813449,106.37,106.34,0.32467105]
[1744195510222,0.07223449,106.37,106.34,0.32467105]
[1744195510410,0.07223449,106.37,106.34,26.57619664]
[1744195510717,0.07223449,106.37,106.36,9.4065]
[1744195511313,9.4035,106.4,106.34,62.17619664]
[1744195511521,9.4035,106.4,106.34,62.1761238]
[1744195511821,9.4035,106.4,106.37,9.4049]
[1744195512120,9.4035,106.4,106.34,62.1761238]
[1744195512422,0.06810397,106.38,106.37,9.405]
[1744195514116,23.88522559,106.44,106.39,9.4033]
[1744195514314,9.4019,106.42,106.39,9.4033]
[1744195514517,23.88522559,106.44,106.39,9.4033]
[1744195514719,37.9733,106.45,106.39,9.4033]
[1744195514924,37.9733,106.45,106.37,37.8841]
[1744195514925,9.4025,106.41,106.38,9.4042]
[1744195515223,9.4025,106.41,106.38,9.46450663]
[1744195518328,9.403,106.4,106.38,9.46450663]
[1744195518517,9.403,106.4,106.38,9.4042]
[1744195518717,9.403,106.4,106.38,9.46457031]
[1744195518918,9.4026,106.41,106.38,9.46457031]
[1744195519217,35.6,106.42,106.38,9.46457031]
[1744195519418,9.403,106.4,106.38,9.46457031]
[1744195520327,9.403,106.4,106.38,0.06037031]
[1744195521725,9.4038,106.39,106.38,0.06037031]
[1744195522419,45.0038,106.39,106.38,0.06037031]
[1744195523015,9.4074,106.35,106.34,0.32459821]
[1744195523317,35.6,106.39,106.34,0.32459821]
[1744195523627,35.6,106.39,106.34,9.73279821]
[1744195523926,23.88522559,106.38,106.34,0.32459821]
[1744195524227,0.06156225,106.37,106.35,0.06734838]
[1744195524729,9.4065,106.36,106.35,0.06734838]
[1744195526023,9.46756225,106.37,106.35,0.06734838]
[1744195526429,0.06156225,106.37,106.35,0.06734838]
[1744195527032,0.06156225,106.37,106.36,9.4065]
[1744195527729,0.06156225,106.37,106.35,0.06734838]
[1744195528234,0.06156225,106.37,106.36,9.4065]
[1744195528623,0.06156225,106.37,106.35,0.06734838]
[1744195528926,9.46716225,106.37,106.35,9.47444838]
[1744195529232,0.06156225,106.37,106.35,9.47444838]
[1744195530428,0.06156225,106.37,106.36,9.4065]
[1744195530834,0.06156225,106.37,106.35,0.06734838]
[1744195531233,0.06156225,106.37,106.35,9.47434838]
[1744195533334,9.46726225,106.37,106.35,9.47434838]
[1744195534328,9.46726225,106.37,106.35,0.06734838]
[1744195534834,9.46726225,106.37,106.35,9.47444838]
[1744195536238,0.06156225,106.37,106.36,9.4065]
[1744195537029,9.46716225,106.37,106.35,9.47434838]
[1744195537635,9.46716225,106.37,106.36,9.4065]
[1744195537636,0.06156225,106.37,106.36,9.4065]
[1744195538139,0.06156225,106.37,106.35,9.47424838]
[1744195538937,0.06156225,106.37,106.36,9.4065]
[1744195540334,2.2102,106.41,106.4,9.403]
[1744195540542,40.804,106.44,106.37,23.88522559]
[1744195540734,40.804,106.44,106.37,26.15142559]
[1744195540932,9.4013,106.42,106.4,9.4025]
[1744195541540,40.804,106.44,106.4,0.06931861]
[1744195541737,36.16,106.44,106.4,0.06931861]
[1744195542034,9.4006,106.43,106.41,9.4017]
[1744195542946,45.5598,106.44,106.42,9.4012]
[1744195543238,23.88522559,106.47,106.4,0.06931861]
[1744195543450,9.3998,106.44,106.42,9.4007]
[1744195543835,9.3998,106.44,106.42,9.47066328]
[1744195544243,9.3991,106.45,106.43,9.4]
[1744195544542,40.8261,106.48,106.43,9.4]
[1744195544744,40.8261,106.48,106.43,9.46674236]
[1744195544932,40.8261,106.48,106.43,0.06674236]
[1744195545133,9.3976,106.47,106.43,0.06674236]
[1744195545336,40.8261,106.48,106.43,0.06674236]
[1744195545538,40.8261,106.48,106.44,9.3991]
[1744195547239,23.88522559,106.51,106.43,23.95196795]
[1744195547443,23.88522559,106.49,106.42,40.811]
[1744195547633,23.88522559,106.49,106.46,0.06474183]
[1744195547830,60.04522559,106.49,106.46,0.06474183]
[1744195548026,36.16,106.49,106.46,0.06474183]
[1744195548233,60.04522559,106.49,106.46,0.06474183]
[1744195549443,60.04522559,106.49,106.44,9.3991]
[1744195549444,60.04522559,106.49,106.42,11.7305]
[1744195549744,60.04522559,106.49,106.42,2.3297]
[1744195549943,9.3986,106.45,106.42,11.7305]
[1744195550546,9.46334183,106.45,106.42,11.79939786]
[1744195550744,0.06474183,106.45,106.43,9.4001]
[1744195551142,0.06474183,106.45,106.42,0.06889786]
[1744195551345,9.3999,106.44,106.42,0.06889786]
[1744195552546,9.4003,106.43,106.42,0.06889786]
[1744195552950,0.06474183,106.45,106.42,0.06889786]
[1744195553148,9.3998,106.44,106.42,9.46999786]
[1744195553540,0.06474183,106.45,106.42,0.06889786]
[1744195555445,0.06474183,106.45,106.42,9.46999786]
[1744195556250,9.3997,106.44,106.42,0.06889786]
[1744195557146,0.06474183,106.45,106.42,0.06889786]
[1744195557351,15.26904689,106.44,106.42,0.06889786]
[1744195557746,9.4003,106.43,106.42,0.06889786]
[1744195561352,60.72934689,106.43,106.42,0.06889786]
[1744195561561,60.72904689,106.43,106.35,17.63824689]
[1744195561743,15.26904689,106.38,106.34,0.32459821]
[1744195561944,51.32904689,106.38,106.34,9.73249821]
[1744195562145,9.406,106.37,106.34,9.73249821]
[1744195562346,9.406,106.37,106.34,0.32459821]
[1744195562547,36.06,106.38,106.34,15.5936451]
[1744195562756,0.06925133,106.37,106.34,15.6582754]
[1744195562949,0.06925133,106.37,106.35,9.4074]
[1744195563155,0.06925133,106.37,106.35,15.26904689]
[1744195563347,0.06925133,106.37,106.34,60.32525318]
[1744195563541,0.06925133,106.37,106.36,9.4065]
[1744195565558,0.06925133,106.37,106.36,33.28252467]
[1744195565855,9.4026,106.41,106.39,9.4036]
[1744195566958,9.46681374,106.41,106.39,9.46754785]
[1744195569365,0.06421374,106.41,106.4,9.403]
[1744195569663,0.06421374,106.41,106.39,0.06394785]
[1744195569963,0.06421374,106.41,106.39,9.46724785]
[1744195570359,9.46651374,106.41,106.39,9.46724785]
[1744195570558,0.06421374,106.41,106.4,9.403]
[1744195574565,0.06421374,106.41,106.39,4.74944785]
[1744195574774,0.06421374,106.41,106.39,0.06394785]
[1744195575065,9.403,106.4,106.39,0.06394785]
[1744195576261,9.4065,106.37,106.34,0.32459821]
[1744195576462,36.06,106.39,106.34,0.32459821]
[1744195577169,36.06,106.39,106.34,9.73259821]
[1744195577375,9.4074,106.35,106.34,0.32459821]
[1744195579260,9.4074,106.35,106.34,9.821e-05]
[1744195579763,9.46657057,106.36,106.34,9.821e-05]
[1744195579966,0.05977057,106.36,106.34,9.821e-05]
[1744195581269,9.46697057,106.36,106.34,9.821e-05]
[1744195581966,9.4074,106.35,106.34,9.821e-05]
[1744195585859,0.05977057,106.36,106.34,9.821e-05]
[1744195586558,9.4074,106.35,106.34,9.821e-05]
[1744195587477,11.6705,106.35,106.34,9.821e-05]
[1744195588572,9.4109,106.31,106.3,0.32030396]
[1744195588866,59.89602467,106.32,106.28,0.29857286]
[1744195589172,9.4127,106.29,106.28,0.29857286]
[1744195589762,45.4327,106.29,106.28,0.29857286]
[1744195591273,36.02,106.29,106.28,0.29857286]
[1744195592767,9.4830895,106.3,106.28,0.29857286]
[1744195593468,9.4127,106.29,106.28,0.29857286]